bitfinex/quotes_ETHUSD_20241022
["timestamp","ask_amount","ask_price","bid_price","bid_amount"]
[1729607285718,4.5899,2620.9,2620.7,0.0447809]
[1729607286031,3.81562,2620.8,2620.3,3.81622]
[1729607286245,3.81543,2621.0,2620.5,3.81599]
[1729607286752,9.00477822,2621.2,2620.6,0.04486257]
[1729607286961,9.00477822,2621.2,2620.1,4.15444]
[1729607286962,3.81577,2620.7,2620.1,4.15444]
[1729607287255,3.81602,2620.6,2620.2,0.04518929]
[1729607287417,7.63165,2620.7,2620.2,3.86167929]
[1729607287755,3.81577,2620.7,2620.2,3.86161929]
[1729607288308,7.63168,2620.7,2620.2,3.86159929]
[1729607288814,3.81577,2620.7,2620.2,3.86158929]
[1729607289360,3.81595,2620.6,2620.2,3.86158929]
[1729607289715,7.63166,2620.7,2620.2,3.86158929]
[1729607290312,3.81594,2620.6,2620.2,3.86158929]
[1729607290825,3.81588,2620.7,2620.2,3.86158929]
[1729607291123,3.81588,2620.7,2620.2,7.67800929]
[1729607291325,7.63118,2620.9,2620.3,3.81634]
[1729607291525,3.81571,2620.8,2620.4,0.04424859]
[1729607291726,3.81588,2620.7,2620.4,0.04424859]
[1729607291956,5.18972822,2621.2,2620.4,0.04424859]
[1729607291957,3.81606,2620.5,2620.4,0.04424859]
[1729607292114,3.81606,2620.5,2619.3,4.36902822]
[1729607292115,3.81726,2619.7,2619.5,0.3378]
[1729607292323,3.81754,2619.5,2619.2,0.3378]
[1729607292554,3.81752,2619.5,2618.9,3.81831]
[1729607292716,3.81737,2619.6,2619.1,3.81809]
[1729607292917,4.57803,2620.0,2619.3,3.8177]
[1729607293227,3.817,2619.9,2619.3,3.8177]
[1729607293549,3.817,2619.9,2619.4,0.3378]
[1729607293714,0.7612,2620.0,2619.5,3.86096445]
[1729607293913,4.57801,2620.0,2619.5,0.04351445]
[1729607294155,3.81694,2619.9,2619.5,0.04351445]
[1729607294361,3.81717,2619.8,2619.5,0.04351445]
[1729607294515,7.634,2619.9,2619.3,3.81773]
[1729607294952,7.634,2619.9,2619.2,4.15565]
[1729607294953,3.81718,2619.8,2619.4,0.04359619]
[1729607295113,3.81718,2619.8,2619.2,4.15575]
[1729607295320,3.81718,2619.8,2619.3,0.04367794]
[1729607295544,3.81718,2619.8,2619.2,4.15575]
[1729607295754,3.81718,2619.8,2619.3,0.04367794]
[1729607296054,3.81731,2619.7,2619.2,4.15575]
[1729607296259,3.81718,2619.8,2619.4,0.04359619]
[1729607296415,3.81718,2619.8,2619.4,3.81765]
[1729607296614,3.81718,2619.8,2619.5,0.04351445]
[1729607297032,3.81718,2619.8,2619.3,3.8178]
[1729607297229,3.81723,2619.7,2619.6,0.04343271]
[1729607297547,3.81767,2619.4,2619.0,3.81818]
[1729607297752,3.81783,2619.3,2618.9,4.15618]
[1729607297952,3.81767,2619.4,2618.9,0.3378]
[1729607298253,7.63547,2619.4,2618.9,4.15611]
[1729607298478,3.81767,2619.4,2618.9,4.15611]
[1729607298759,3.81782,2619.3,2618.9,4.15611]
[1729607299463,3.81822,2619.1,2618.6,4.15661]
[1729607299642,3.81802,2619.2,2618.7,3.81867]
[1729607300223,0.381782,2619.3,2618.7,3.81867]
[1729607300424,3.81818,2619.1,2618.6,4.15661]
[1729607300858,3.81818,2619.1,2618.6,0.3378]
[1729607301171,3.81812,2619.1,2618.7,3.81859]
[1729607302771,3.81796,2619.2,2618.7,3.81859]
[1729607302970,3.81796,2619.2,2618.8,3.81853]
[1729607303270,3.81796,2619.2,2618.7,3.81859]
[1729607303271,3.8181,2619.1,2618.7,3.81859]
[1729607303675,7.63583,2619.3,2618.7,7.63715]
[1729607303827,3.81804,2619.2,2618.6,0.3378]
[1729607304028,3.81826,2619.0,2618.6,4.15663]
[1729607304369,3.81891,2618.6,2618.1,3.81945]
[1729607305065,3.81891,2618.6,2618.0,0.3378]
[1729607305066,3.81898,2618.5,2618.0,4.1575]
[1729607305747,3.81898,2618.5,2618.0,0.3378]
[1729607305958,3.81898,2618.5,2618.1,3.81955]
[1729607306464,3.81898,2618.5,2618.0,4.1575]
[1729607306855,0.7639,2618.4,2617.7,3.82003]
[1729607307057,3.81935,2618.3,2617.6,3.8202]
[1729607307236,0.7639,2618.5,2618.0,3.81958]
[1729607307442,3.81928,2618.3,2617.8,3.81989]
[1729607307674,3.81928,2618.3,2617.8,7.63981]
[1729607307987,6.81855,2618.8,2618.1,0.3378]
[1729607307988,3.81885,2618.6,2618.1,0.3378]
[1729607308270,3.81885,2618.6,2618.1,4.15726]
[1729607308841,3.81885,2618.6,2618.2,0.04587551]
[1729607309375,3.81905,2618.5,2618.2,0.04587551]
[1729607310336,7.63817,2618.5,2618.2,0.04587551]
[1729607310655,3.81927,2618.3,2617.8,4.1577]
[1729607311048,3.81927,2618.3,2617.8,4.15769]
[1729607311249,3.81953,2618.2,2617.8,0.3378]
[1729607311781,3.81958,2618.1,2617.6,3.82019]
[1729607311977,3.82028,2617.7,2617.3,0.1263904]
[1729607313283,3.82026,2617.7,2617.3,0.1263904]
[1729607313641,7.64049,2617.7,2617.3,0.1263904]
[1729607313840,4.61903,2617.7,2617.3,0.1263904]
[1729607314067,3.82036,2617.6,2617.3,0.1263904]
[1729607314455,3.82042,2617.6,2617.3,0.1263904]
[1729607315156,3.82047,2617.5,2617.3,0.1263904]
[1729607316474,3.8203,2617.6,2617.3,0.1263904]
[1729607318700,7.64068,2617.6,2617.3,0.1263904]
[1729607318904,0.9283379,2617.6,2617.3,0.1263904]
[1729607319193,8.5690779,2617.6,2617.3,0.1263904]
[1729607319504,4.7486479,2617.6,2617.3,0.1263904]
[1729607319861,4.36902822,2618.0,2617.3,3.9470904]
[1729607319862,11.43692,2617.9,2617.3,3.9470904]
[1729607320059,7.61696,2617.9,2617.4,3.82051]
[1729607320263,3.82004,2617.8,2617.4,3.82051]
[1729607320534,0.7971,2618.2,2617.4,0.3378]
[1729607320653,3.81933,2618.3,2617.8,3.82]
[1729607320858,3.81942,2618.2,2617.8,3.82]
[1729607321088,4.6162,2618.5,2617.9,3.81978]
[1729607321254,3.4179763,2618.6,2618.1,4.15724]
[1729607321255,3.81887,2618.6,2618.1,4.15724]
[1729607321458,3.81878,2618.7,2618.1,4.15724]
[1729607321459,3.81898,2618.5,2618.1,4.15724]
[1729607321723,3.81884,2618.6,2618.1,4.15724]
[1729607322255,4.2150763,2618.8,2618.1,4.15724]
[1729607322256,4.6157,2618.8,2618.4,3.81908]
[1729607322471,4.6157,2618.8,2618.2,3.81941]
[1729607322472,3.81868,2618.7,2618.2,3.81941]
[1729607322668,3.8186,2618.8,2618.3,3.81926]
[1729607322867,8.43049,2619.0,2618.4,3.8191]
[1729607323118,8.43049,2619.0,2618.4,7.63813]
[1729607323411,3.81811,2619.1,2618.6,3.81881]
[1729607323700,3.81811,2619.1,2618.7,3.81867]
[1729607323915,3.81811,2619.1,2618.7,0.04420352]
[1729607324508,3.81834,2619.0,2618.7,0.04420352]
[1729607325114,3.81811,2619.1,2618.7,0.04420352]
[1729607325728,3.81825,2619.0,2618.7,0.04420352]
[1729607326317,3.81811,2619.1,2618.7,0.04420352]
[1729607326521,4.660462,2619.1,2618.7,0.04420352]
[1729607327412,3.81836,2619.0,2618.7,0.04420352]
[1729607327615,4.58274,2618.8,2618.1,3.81949]
[1729607327771,4.58274,2618.8,2618.0,0.3378]
[1729607327772,3.81915,2618.4,2618.0,0.3378]
[1729607328206,7.63786,2618.6,2618.0,4.15748]
[1729607328516,3.819,2618.5,2618.0,0.3378]
[1729607328693,3.81919,2618.4,2618.0,0.3378]
[1729607328895,4.37071372,2618.3,2617.5,3.82032]
[1729607329187,3.81978,2618.0,2617.5,3.82032]
[1729607329400,3.81978,2618.0,2617.3,4.2848604]
[1729607329783,3.81978,2618.0,2617.5,3.82041]
[1729607329989,3.81985,2617.9,2617.3,4.2848304]
[1729607330570,4.201758,2618.0,2617.5,3.82036]
[1729607330779,0.381978,2618.0,2617.7,7.64011]
[1729607331015,3.81951,2618.2,2617.7,3.82005]
[1729607331228,3.8195,2618.2,2617.7,3.82005]
[1729607331528,4.56933,2618.4,2617.6,3.82028]
[1729607331529,3.81957,2618.1,2617.6,3.82028]
[1729607331820,4.201527,2618.1,2617.7,3.82013]
[1729607331986,0.381957,2618.1,2617.7,3.82013]
[1729607332193,0.381957,2618.1,2617.7,7.6402]
[1729607332389,0.381957,2618.1,2617.7,3.82007]
[1729607333821,4.201517,2618.1,2617.5,3.82035]
[1729607334046,3.81986,2617.9,2617.5,3.82034]
[1729607334179,0.7859,2617.9,2617.6,3.82028]
[1729607334382,0.7859,2617.9,2617.5,3.82034]
[1729607335429,0.7859,2617.9,2617.6,3.82027]
[1729607336984,0.7859,2617.9,2617.4,3.82058]
[1729607337296,0.7859,2617.9,2617.6,3.82029]
[1729607338287,0.7859,2617.9,2617.5,3.82043]
[1729607338804,0.7859,2617.9,2617.6,3.82027]
[1729607338999,0.7859,2617.9,2617.6,0.04509199]
[1729607339205,0.7859,2617.9,2617.6,3.86529199]
[1729607339715,0.7859,2617.9,2617.6,0.04509199]
[1729607339915,0.7859,2617.9,2617.6,3.86536199]
[1729607340114,0.7859,2617.9,2617.6,0.04509199]
[1729607340423,4.60576,2617.9,2617.6,0.04509199]
[1729607340941,3.82014,2617.7,2617.6,0.04509199]
[1729607341088,8.19085372,2617.7,2617.6,0.04509199]
[1729607341288,8.19085372,2617.7,2617.3,0.1263904]
[1729607341599,3.82032,2617.6,2617.4,0.04555344]
[1729607341786,3.82043,2617.5,2617.4,0.04555344]
[1729607341991,5.82497537,2617.5,2617.4,0.04555344]
[1729607342576,3.82058,2617.4,2617.3,0.1263904]
[1729607342842,8.19129372,2617.4,2617.3,0.17219205]
[1729607343230,8.19129372,2617.4,2617.3,0.1263904]
[1729607343406,9.59292063,2617.4,2617.3,0.1263904]
[1729607343823,10.41652063,2617.4,2617.3,0.1263904]
[1729607344633,6.04580691,2617.4,2617.3,0.1263904]
[1729607344997,6.04580691,2617.4,2617.3,0.17219205]
[1729607345193,6.04580691,2617.4,2617.3,0.1263904]
[1729607345421,4.64418,2617.4,2617.3,0.1263904]
[1729607345809,0.8236,2617.4,2617.3,0.1263904]
[1729607346015,0.8236,2617.4,2617.3,0.17260604]
[1729607346195,3.0,2617.7,2617.4,3.82056]
[1729607346407,3.81995,2617.9,2617.4,3.82056]
[1729607346408,7.23822766,2617.9,2617.5,3.8664819]
[1729607346608,3.82002,2617.8,2617.5,0.0460519]
[1729607346861,7.23813766,2617.9,2617.5,0.0460519]
[1729607347043,3.82023,2617.7,2617.3,0.1263904]
[1729607347741,3.82023,2617.7,2617.4,0.04613376]
[1729607348357,7.64052,2617.7,2617.4,0.04613376]
[1729607348536,0.80053377,2617.8,2617.4,0.04613376]
[1729607348537,3.82038,2617.6,2617.4,0.04613376]
[1729607348739,4.972568,2617.5,2617.4,0.04613376]
[1729607349049,4.972568,2617.5,2617.3,0.1263904]
[1729607349261,1.152138,2617.5,2617.3,0.1263904]
[1729607349550,4.972578,2617.5,2617.4,0.04602542]
[1729607349728,3.82058,2617.4,2617.3,0.1263904]
[1729607349912,1.69894198,2617.4,2617.3,0.1263904]
[1729607350315,1.69894198,2617.4,2617.3,0.17252477]
[1729607350636,5.51952198,2617.4,2617.3,0.17252477]
[1729607351044,1.69894198,2617.4,2617.3,0.17252477]
[1729607351415,4.972588,2617.5,2617.3,0.17252477]
[1729607351616,4.972588,2617.5,2617.3,0.1263904]
[1729607351929,3.82058,2617.4,2617.3,0.1263904]
[1729607352319,3.82058,2617.4,2617.3,0.17254412]
[1729607353464,3.82058,2617.4,2617.3,0.1263904]
[1729607353465,6.82058,2617.4,2617.3,0.1263904]
[1729607353637,8.13748498,2617.4,2617.3,0.1263904]
[1729607353962,8.92328498,2617.4,2617.3,0.1263904]
[1729607354256,8.93328498,2617.4,2617.3,0.1263904]
[1729607354466,3.8223,2616.3,2615.8,0.3378]
[1729607354803,7.64461,2616.3,2615.8,4.16071]
[1729607354917,3.8223,2616.3,2615.9,0.04730833]
[1729607355117,3.82206,2616.4,2615.9,3.86996833]
[1729607355356,3.82201,2616.5,2615.9,0.04730833]
[1729607355357,3.82219,2616.3,2615.9,0.04730833]
[1729607355534,4.586607,2616.3,2616.0,0.04722637]
[1729607355855,3.82234,2616.2,2616.0,0.04722637]
[1729607356177,4.586607,2616.3,2616.0,0.04722637]
[1729607356453,3.82236,2616.2,2616.1,0.04556747]
[1729607356666,3.82236,2616.2,2615.6,7.6462]
[1729607356667,4.6632567,2616.2,2615.6,7.6462]
[1729607356817,4.6632567,2616.2,2615.6,3.82309]
[1729607357018,0.8408967,2616.2,2615.8,3.82288]
[1729607357219,3.82212,2616.4,2615.9,0.04606818]
[1729607357697,3.82212,2616.4,2615.8,3.8229]
[1729607357821,3.82228,2616.3,2616.0,0.04598622]
[1729607358024,3.82191,2616.5,2616.0,3.82254]
[1729607358268,3.82206,2616.4,2616.1,0.04590427]
[1729607358422,0.382206,2616.3,2616.0,3.82262]
[1729607358625,3.82192,2616.5,2616.1,0.04590427]
[1729607359076,3.82205,2616.4,2616.1,0.04590427]
[1729607359475,3.82205,2616.4,2615.9,3.82276]
[1729607359771,3.82205,2616.4,2616.2,0.04582232]
[1729607359924,4.204395,2616.3,2616.2,0.04582232]
[1729607360266,0.753,2616.1,2615.2,0.07645687]
[1729607360450,0.753,2616.1,2615.3,3.82351]
[1729607360451,3.82298,2615.8,2615.3,3.82351]
[1729607360653,3.82298,2615.8,2615.4,3.82347]
[1729607360837,3.82283,2615.9,2615.4,3.82347]
[1729607361166,1.27743718,2615.9,2615.6,3.82317]
[1729607361419,4.57549,2616.1,2615.6,3.82312]
[1729607361869,3.0,2616.2,2615.8,3.8229]
[1729607362865,9.38485683,2616.3,2615.8,3.8229]
[1729607363050,9.38484683,2616.3,2615.9,0.0465521]
[1729607363255,0.93848468,2616.2,2615.9,0.0465521]
[1729607363463,1.186705,2616.3,2615.9,0.0465521]
[1729607363676,5.56258683,2616.3,2615.9,0.0465521]
[1729607364339,5.56258683,2616.3,2615.9,3.8692621]
[1729607364546,0.382205,2616.3,2615.9,0.0465521]
[1729607364766,3.0,2616.5,2616.1,3.8224]
[1729607365073,6.82191,2616.5,2616.0,3.82262]
[1729607365243,6.82191,2616.5,2616.2,0.04630237]
[1729607365446,6.82191,2616.5,2616.0,3.82262]
[1729607365630,8.40431118,2616.5,2616.0,3.82262]
[1729607365832,8.40431118,2616.5,2616.1,0.04638431]
[1729607366582,3.82147,2616.8,2616.2,4.16005]
[1729607366779,3.82161,2616.7,2616.2,0.3378]
[1729607367077,3.82161,2616.7,2616.3,0.04622042]
[1729607367078,3.82172,2616.7,2616.3,0.04622042]
[1729607367427,8.95599183,2616.9,2616.3,3.82211]
[1729607367640,5.09356818,2616.9,2616.4,0.04613849]
[1729607368446,3.42120475,2616.8,2616.4,0.04613849]
[1729607368844,5.09356818,2616.9,2616.4,3.86815849]
[1729607369055,4.27215818,2616.9,2616.5,3.82189]
[1729607369261,0.7922,2617.2,2616.7,3.82147]
[1729607369445,5.35021,2617.7,2616.8,0.04579144]
[1729607369446,0.7922,2617.4,2616.8,0.04579144]
[1729607369669,0.7922,2617.4,2617.0,3.8211]
[1729607369860,4.61245,2617.7,2617.1,3.82094]
[1729607370065,4.61245,2617.7,2617.2,0.04535932]
[1729607370066,4.281615,2617.6,2617.2,0.04535932]
[1729607370232,4.61293,2617.3,2617.2,0.04535932]
[1729607370688,3.82162,2616.7,2616.1,3.82248]
[1729607370973,3.82162,2616.7,2616.2,3.82225]
[1729607371180,3.82183,2616.6,2616.2,0.0445058]
[1729607371471,0.764345,2616.5,2616.2,0.0445058]
[1729607371843,3.82169,2616.7,2616.2,0.0445058]
[1729607372049,3.82169,2616.7,2616.0,4.16035]
[1729607372050,3.82196,2616.5,2616.0,4.16035]
[1729607372270,3.82175,2616.6,2616.3,0.04431175]
[1729607372480,3.82169,2616.7,2616.1,3.82248]
[1729607372481,3.82167,2616.7,2616.1,3.82248]
[1729607372775,3.82177,2616.6,2616.4,0.04422982]
[1729607372972,0.382177,2616.5,2616.2,3.82227]
[1729607373149,4.61378,2616.8,2616.5,0.04414789]
[1729607373334,4.61375,2616.8,2616.3,3.82217]
[1729607373533,4.61375,2616.8,2616.6,0.04406597]
[1729607373730,3.8216,2616.7,2616.2,3.82227]
[1729607373944,0.7922,2616.8,2616.7,0.04398405]
[1729607374150,0.461347,2616.8,2616.5,3.82181]
[1729607374353,3.82117,2617.0,2616.7,0.04398405]
[1729607374553,3.82132,2616.9,2616.4,3.82203]
[1729607374755,0.7839,2617.1,2616.8,0.04404904]
[1729607374756,4.60497,2617.1,2616.8,0.04404904]
[1729607374935,4.60497,2617.1,2616.7,3.82154]
[1729607374936,0.7839,2617.1,2616.7,3.82154]
[1729607375160,3.8207,2617.4,2616.9,0.04396714]
[1729607375161,4.5978,2617.4,2616.9,0.04396714]
[1729607375359,0.45978,2617.3,2616.9,0.04396714]
[1729607375585,3.82089,2617.2,2616.8,3.82145]
[1729607375882,3.82089,2617.2,2616.9,0.04396714]
[1729607377581,0.45978,2617.3,2616.9,0.04396714]
[1729607377743,3.82112,2617.1,2616.9,0.04396714]
[1729607377941,4.631297,2617.1,2616.6,3.82165]
[1729607378446,4.631297,2617.1,2616.7,0.04413095]
[1729607380038,0.810177,2617.1,2616.7,0.04413095]
[1729607380240,4.631297,2617.1,2616.7,0.04413095]
[1729607380665,0.810177,2617.1,2616.7,0.04413095]
[1729607380872,4.631197,2617.1,2616.7,3.86571095]
[1729607381180,3.8211,2617.1,2616.7,0.04413095]
[1729607381385,4.28058,2617.3,2616.7,0.04413095]
[1729607381545,4.28058,2617.3,2616.8,3.82146]
[1729607381744,4.28058,2617.3,2616.8,3.86540854]
[1729607382188,3.82091,2617.2,2616.8,0.04394854]
[1729607382391,4.249159,2617.1,2616.8,0.04394854]
[1729607382698,4.249159,2617.1,2616.9,0.04386664]
[1729607382841,0.428069,2617.1,2616.6,3.82163]
[1729607383047,3.82116,2617.0,2616.6,3.82163]
[1729607383289,4.249099,2617.1,2616.7,0.04403045]
[1729607383799,3.82133,2616.9,2616.7,0.04403045]
[1729607384001,3.82146,2616.8,2616.7,0.04403045]
[1729607384211,3.82169,2616.7,2616.3,0.3378]
[1729607384661,3.82169,2616.7,2616.2,3.8223]
[1729607385094,7.64343,2616.7,2616.2,3.8223]
[1729607385299,3.82167,2616.7,2616.2,7.64454]
[1729607385859,4.585968,2616.7,2616.2,3.82224]
[1729607386094,3.82185,2616.6,2616.1,3.82247]
[1729607386397,4.585968,2616.7,2616.3,3.82218]
[1729607386970,4.585968,2616.7,2616.1,3.82247]
[1729607386971,3.82178,2616.6,2616.2,3.82232]
[1729607387278,4.585968,2616.7,2616.2,3.82232]
[1729607387477,4.585968,2616.7,2616.3,3.82216]
[1729607387963,0.764298,2616.7,2616.3,3.82216]
[1729607388164,4.37895837,2617.2,2616.3,3.82216]
[1729607388165,4.60397,2617.3,2616.8,3.82138]
[1729607388373,3.82108,2617.1,2616.6,3.82167]
[1729607388901,3.82102,2617.1,2616.6,3.82165]
[1729607389686,3.82124,2617.0,2616.5,7.64371]
[1729607390466,3.82124,2617.0,2616.6,3.82175]
[1729607391312,3.82124,2617.0,2616.5,3.82182]
[1729607391512,3.82124,2617.0,2616.5,7.64364]
[1729607392213,3.82137,2616.9,2616.4,4.15977]
[1729607392419,4.64153649,2616.9,2616.5,3.82189]
[1729607392731,3.82114,2617.1,2616.6,3.82169]
[1729607393216,3.82114,2617.1,2616.5,3.82177]
[1729607393217,3.82133,2616.9,2616.5,3.82177]
[1729607393573,3.82133,2616.9,2616.4,0.3378]
[1729607393779,3.82115,2617.1,2616.6,3.82161]
[1729607393976,3.82115,2617.1,2616.7,3.82152]
[1729607394376,3.82084,2617.3,2616.7,3.82152]
[1729607394577,3.82089,2617.2,2616.7,3.82146]
[1729607394783,3.82089,2617.2,2616.6,3.82175]
[1729607395011,3.82103,2617.1,2616.7,3.82153]
[1729607395920,0.764173,2617.2,2616.8,3.82144]
[1729607396137,3.82073,2617.3,2616.7,3.82153]
[1729607396281,5.037715,2617.6,2617.1,3.82091]
[1729607396621,5.037715,2617.6,2616.5,3.75833998]
[1729607396622,3.82045,2617.5,2617.0,4.15895]
[1729607396920,1.217345,2617.6,2617.0,4.15895]
[1729607396921,3.82065,2617.4,2617.0,7.98004]
[1729607397215,3.82044,2617.5,2617.0,4.15885]
[1729607397379,3.82044,2617.5,2617.0,7.97995]
[1729607397580,3.82044,2617.5,2617.1,3.821]
[1729607397897,3.82074,2617.3,2616.8,3.82133]
[1729607398224,3.82058,2617.4,2616.8,3.82133]
[1729607398740,0.8858095,2617.5,2616.7,4.15927]
[1729607398741,3.8211,2617.1,2616.7,4.15927]
[1729607398882,3.8858095,2617.5,2616.9,0.04370426]
[1729607399097,0.93439945,2617.4,2616.9,0.04370426]
[1729607399301,3.8211,2617.1,2616.7,4.1594]
[1729607399599,3.8211,2617.1,2616.8,0.0437823]
[1729607400028,3.8211,2617.1,2616.7,4.1594]
[1729607400249,3.8209,2617.2,2616.9,0.04370039]
[1729607400458,3.0,2617.5,2617.0,3.82116]
[1729607400597,4.64845,2617.9,2617.4,3.82048]
[1729607400797,4.64845,2617.9,2617.1,3.4969597]
[1729607400798,0.8285,2618.3,2617.7,3.82013]
[1729607401002,3.81951,2618.2,2617.7,3.82006]
[1729607401251,3.81951,2618.2,2617.7,3.82013]
[1729607401252,3.81969,2618.1,2617.7,3.82013]
[1729607401544,3.81969,2618.1,2617.6,0.3378]
[1729607401545,3.82009,2617.8,2617.3,0.3378]
[1729607401704,3.42053998,2618.0,2616.9,0.38150039]
[1729607401705,0.7887,2617.7,2616.9,0.38150039]
[1729607402012,3.82037,2617.6,2617.0,3.82108]
[1729607402342,0.460907,2617.5,2617.1,3.821]
[1729607402712,3.82058,2617.4,2616.9,4.20280039]
[1729607402958,4.59094,2617.2,2616.9,0.04370039]
[1729607403165,0.77,2617.2,2616.9,0.04370039]
[1729607403365,0.459075,2617.1,2616.9,0.04370039]
[1729607403567,0.459075,2617.1,2616.9,3.86489039]
[1729607403766,0.7982,2617.4,2617.1,3.82102]
[1729607403987,0.7982,2617.4,2617.0,3.82109]
[1729607404547,4.281437,2617.5,2617.0,3.82109]
[1729607405062,0.7678,2617.6,2617.3,3.82065]
[1729607405372,3.82021,2617.7,2617.3,3.82065]
[1729607405547,3.82008,2617.8,2617.4,3.82057]
[1729607405746,3.7678,2617.9,2617.3,3.82065]
[1729607405747,7.58767,2617.9,2617.3,3.82065]
[1729607405941,0.8203,2618.2,2617.9,3.81972]
[1729607406194,0.8203,2618.4,2618.0,3.81959]
[1729607406353,1.28423,2618.4,2618.1,3.81948]
[1729607406578,3.42053998,2619.0,2618.3,3.81927]
[1729607406579,4.63899,2618.7,2618.3,3.81927]
[1729607406945,4.63899,2618.7,2618.1,3.81948]
[1729607406946,3.81891,2618.6,2618.1,3.81945]
[1729607407151,4.63899,2618.7,2618.2,3.81934]
[1729607407454,4.63899,2618.7,2618.2,7.63864]
[1729607407659,0.8203,2618.7,2618.3,3.8192]
[1729607407860,3.81833,2619.0,2618.5,3.81889]
[1729607408065,0.342054,2618.9,2618.1,0.07638108]
[1729607408361,0.8203,2619.2,2618.6,3.81882]
[1729607408362,3.81817,2619.1,2618.6,3.81882]
[1729607408572,0.8203,2619.2,2618.6,3.81883]
[1729607408573,4.63827,2619.2,2618.6,3.81883]
[1729607408762,0.8203,2619.2,2618.6,3.81883]
[1729607408977,3.81791,2619.3,2618.8,3.81847]
[1729607409152,3.8179,2619.3,2618.8,3.81847]
[1729607409349,3.8179,2619.3,2618.7,0.3378]
[1729607409350,4.27585,2619.2,2618.7,0.3378]
[1729607409554,0.45783,2619.2,2618.7,0.3378]
[1729607409861,0.45783,2619.2,2618.5,0.3378]
[1729607410192,3.81827,2619.0,2618.4,3.81899]
[1729607410595,0.8157,2619.1,2618.3,3.8192]
[1729607410596,3.81857,2618.8,2618.3,3.8192]
[1729607410755,0.7887,2618.6,2618.1,7.63888]
[1729607410962,3.8192,2618.4,2617.9,3.81971]
[1729607411254,3.81898,2618.5,2617.9,3.81985]
[1729607411503,3.81918,2618.4,2617.9,3.81985]
[1729607412024,3.81918,2618.4,2618.0,3.81967]
[1729607412303,0.381918,2618.3,2618.0,3.81967]
[1729607412806,4.60755,2618.6,2617.9,3.81976]
[1729607412969,0.381857,2618.7,2618.4,3.81904]
[1729607413314,0.381857,2618.7,2618.6,3.81883]
[1729607413459,3.81822,2619.1,2618.6,3.81883]
[1729607413892,5.05691,2619.2,2618.6,3.81883]
[1729607414303,5.0568,2619.2,2618.8,3.81853]
[1729607414499,5.0568,2619.2,2618.6,3.81878]
[1729607414659,5.0568,2619.2,2618.8,3.81851]
[1729607415059,4.32381,2619.1,2618.6,3.81878]
[1729607415301,0.50568,2619.1,2618.7,3.81868]
[1729607415704,0.7743,2619.5,2618.9,3.81828]
[1729607416005,3.8168,2620.0,2619.3,3.81774]
[1729607416006,4.5915,2619.8,2619.3,3.81774]
[1729607416301,0.7743,2620.1,2619.4,0.3378]
[1729607416514,0.7743,2620.1,2619.7,3.81715]
[1729607416699,3.81648,2620.3,2619.8,3.81706]
[1729607417002,3.81648,2620.3,2619.7,3.81712]
[1729607417003,4.65732,2620.2,2619.7,3.81712]
[1729607417162,0.84071,2620.2,2619.8,3.81707]
[1729607417361,0.84071,2620.2,2619.9,3.81693]
[1729607417564,3.81651,2620.2,2619.6,3.81726]
[1729607417759,3.81701,2619.9,2619.4,4.15536]
[1729607417990,3.81675,2620.1,2619.7,0.03970003]
[1729607418216,3.81675,2620.1,2619.8,0.03961059]
[1729607418422,3.81693,2619.9,2619.0,3.0]
[1729607418734,3.8173,2619.7,2619.1,0.37798278]
[1729607418952,3.8173,2619.7,2619.1,4.19607278]
[1729607419458,0.7812,2619.8,2619.1,4.19599278]
[1729607419747,6.81693,2620.0,2619.5,3.81751]
[1729607420041,4.59785,2620.1,2619.6,0.03967761]
[1729607420339,4.236024,2620.2,2619.6,3.85701761]
[1729607420545,4.236024,2620.2,2619.7,0.3378]
[1729607420699,4.6218974,2620.1,2619.7,0.37703318]
[1729607421401,0.8052474,2620.1,2619.7,0.37703318]
[1729607421709,3.81672,2620.1,2619.7,0.37703318]
[1729607421925,3.81651,2620.2,2619.7,4.19424318]
[1729607422111,3.81635,2620.3,2619.8,3.81695]
[1729607422298,3.81651,2620.2,2619.7,4.19424318]
[1729607422502,3.81635,2620.3,2619.9,0.03906974]
[1729607422844,0.84068,2620.3,2620.0,0.03898803]
[1729607423053,3.81621,2620.4,2619.7,4.15501]
[1729607423250,3.81653,2620.2,2620.1,0.03890633]
[1729607423417,3.81653,2620.2,2619.7,4.15501]
[1729607423613,3.81653,2620.2,2619.8,0.0390589]
[1729607423825,3.81653,2620.2,2619.7,4.15501]
[1729607424121,3.81653,2620.2,2619.8,0.0390589]
[1729607424549,3.81653,2620.2,2619.7,4.15495]
[1729607424847,3.81653,2620.2,2619.8,0.0390589]
[1729607425058,3.81693,2619.9,2619.4,7.63516]
[1729607425346,4.966443,2620.2,2619.9,0.03897719]
[1729607425547,3.81679,2620.0,2619.5,4.1552]
[1729607426449,3.81665,2620.1,2619.6,3.81734]
[1729607426750,4.198153,2620.2,2619.7,3.85628062]
[1729607426946,0.381653,2620.2,2619.8,3.81705]
[1729607427157,7.63293,2620.3,2619.8,3.8561089]
[1729607427158,3.81643,2620.3,2619.8,3.8561089]
[1729607427458,0.8147,2620.5,2619.8,0.0390589]
[1729607427611,3.81679,2620.0,2619.8,0.0390589]
[1729607427816,3.81679,2620.0,2619.5,4.15524]
[1729607428123,3.8166,2620.2,2619.5,4.15524]
[1729607428124,3.8166,2620.2,2619.7,3.81721]
[1729607428436,3.8166,2620.2,2619.8,0.0390589]
[1729607428437,3.81675,2620.1,2619.8,0.0390589]
[1729607428638,3.81693,2619.9,2619.3,4.1556]
[1729607428849,0.8107,2620.0,2619.4,0.03938583]
[1729607428850,3.81716,2619.8,2619.4,0.03938583]
[1729607429045,3.81732,2619.7,2619.4,0.03938583]
[1729607429715,3.81752,2619.5,2619.4,0.03938583]
[1729607429920,7.63142,2619.5,2619.4,0.03938583]
[1729607430143,7.63142,2619.5,2618.6,0.3378]